Cogmind - Beta 13 @@@ ROGUE MODE // 2024.08.02 @ 08:58:29 Player: TinyBoulder Result: Destroyed by EX-DEC with AWS/EX-DEC Performance ------------- Evolutions (1) 500 Regions Visited (5) 1000 Robots Destroyed (39) 195 Value Destroyed (1118) 1118 Prototype IDs (29) 580 Alien Tech Used (0) 0 Bonus (473) 473 TOTAL SCORE: 3866 Bonus ------- High Alert Combat Kills 11 Follower Combat Kills 162 Aligned with FarCom 300 Cogmind --------- Core Integrity 0/400 Matter 215/300 Energy 29/100 System Corruption 9% Temperature Cool (5) Movement Core (1500) Ox29 Location -9/Exiles Parts ------- > --- POWER (1) -------- (None) > --- PROPULSION (3) --- (None) > --- UTILITY (3) ------ Huge Storage Unit > --- WEAPON (2) ------- Assault Cannon Assault Cannon > --- INVENTORY (25) --- Cooled Ion Engine Advanced Myomer Leg Improved Heat Sink Experimental Heat Sink Cooling System Light Armor Plating Shield Generator Skeleton Box Tractor Beam Shotgun Shotgun Shotgun Improved Light Cannon Assault Cannon Field Lobotomy Kit (4) Plasma Cutter Peak State ------------ > --- POWER ------------ Light Angular Momentum Engine > --- PROPULSION ------- Light Treads Improved Treads Improved Treads > --- UTILITY ---------- Experimental Heat Sink Cooling System Huge Storage Unit > --- WEAPON ----------- Assault Cannon Assault Cannon > --- INVENTORY -------- Cooled Ion Engine Improved Heat Sink Cooling System Light Armor Plating Shield Generator Skeleton Box Tractor Beam Beamcaster Shotgun Shotgun Shotgun Improved Light Cannon Assault Cannon Assault Cannon Rocket Launcher Field Lobotomy Kit Plasma Cutter [Rating: 31] Favorites ----------- Power Ion Engine Engine Ion Engine Power Core Light Nuclear Core Propulsion Light Treads Treads Light Treads Leg Advanced Myomer Leg Utility Improved Heat Sink Device Improved Heat Sink Storage Huge Storage Unit Protection Light Armor Plating Weapon Beamcaster Energy Gun Beamcaster Ballistic Gun Assault Rifle Ballistic Cannon Assault Cannon Launcher Rocket Launcher Special Weapon Field Lobotomy Kit Build | -11 -10 -10 -9 -9 -9 ------- Run | Yrd Mat Min Mat Min Exi Slots Evolved 2 | . . . 2 . . Power . | . . . . . . Propulsion 1 | . . . 1 . . Utility 1 | . . . 1 . . Weapon . | . . . . . . Parts Attached 69 | 6 12 7 23 2 19 Power 6 | 1 2 1 2 . . Engine 5 | 1 2 . 2 . . Core 1 | . . 1 . . . Reactor . | . . . . . . Propulsion 19 | 2 3 . 8 . 6 Treads 18 | 2 3 . 8 . 5 Leg 1 | . . . . . 1 Wheel . | . . . . . . Hover . | . . . . . . Flight . | . . . . . . Utility 13 | 1 3 3 2 1 3 Device 7 | . . 3 1 1 2 Storage 5 | 1 3 . 1 . . Processor . | . . . . . . Hackware . | . . . . . . Protection 1 | . . . . . 1 Artifact . | . . . . . . Weapon 31 | 2 4 3 11 1 10 Energy Gun 11 | . 1 1 8 . 1 Energy Cannon . | . . . . . . Ballistic Gun 6 | 2 3 1 . . . Ballistic Cannon 6 | . . . . . 6 Launcher 7 | . . 1 3 1 2 Special Weapon 1 | . . . . . 1 Impact Weapon . | . . . . . . Slashing Weapon . | . . . . . . Piercing Weapon . | . . . . . . Special Melee Weapon . | . . . . . . Unidentified Prototypes 3 | . . . 1 . 2 Parts Lost 14 | . 1 . 2 . 11 Power 2 | . . . 1 . 1 Propulsion 7 | . . . 1 . 6 Utility 1 | . . . . . 1 Weapon 4 | . 1 . . . 3 Highest Loss Streak 4 | . 1 . 1 . 4 To Critical Strikes 2 | . . . . . 2 Average Slot Usage (%) 94 | . 85 97 98 100 94 Engine 11 | . 13 11 10 11 9 Treads 30 | . 28 28 32 33 31 Device 14 | . . 11 20 22 19 Storage 12 | . 14 14 11 11 11 Energy Gun 10 | . 11 3 20 11 2 Ballistic Gun 6 | . 16 14 1 . . Ballistic Cannon 3 | . . . . . 12 Launcher 4 | . . 10 . 11 6 Naked Turns . | . . . . . . Heaviest Build 102 | 13 27 33 99 99 102 Greatest Support 66 | 40 40 40 60 60 66 Greatest Overweight (x) 3 | . 1 . 1 1 3 Average Overweight (x) . | . . . . 1 1 Largest Inventory Capacity 25 | 8 25 15 25 25 25 Average Capacity 19 | 6 12 15 21 25 25 Most Carried 25 | 1 15 15 25 25 25 Average Carried 17 | . 9 14 20 25 21 Final Capacity 25 | 8 15 15 25 25 25 Final Carried 25 | 1 14 15 25 25 16 Class Distribution -------------------- 75% | Mutant 24% | Scavenger-Mutant Dominant Class ---------------- Mutant | -10/Materials Mutant | -10/Mines Scavenger-Mutant | -9/Materials Mutant | -9/Mines Mutant | -9/Exiles Resources | -11 -10 -10 -9 -9 -9 ----------- Run | Yrd Mat Min Mat Min Exi Matter Collected 1985 | 184 423 152 571 . 655 Remotely . | . . . . . . Salvage Created 1381 | . 466 . 891 . 24 Parts 66 | . 24 . 42 . . Haulers Intercepted 1 | . 1 . . . . Recyclers Shooed 1 | . . . 1 . . Parts Field Recycled . | . . . . . . Retrieved Matter . | . . . . . . Parts Self-Destructed . | . . . . . . Prevented . | . . . . . . Kills | -11 -10 -10 -9 -9 -9 ------- Run | Yrd Mat Min Mat Min Exi Combat Hostiles Destroyed 42 | . 10 . 24 . 8 Guns 27 | . 10 . 17 . . Cannons 1 | . . . . . 1 AOE 13 | . . . 6 . 7 Classes Destroyed 9 | . 4 . 4 . 1 Worker 1 | . . . 1 . . Hauler 1 | . 1 . . . . Recycler 1 | . 1 . . . . Watcher 1 | . . . 1 . . Swarmer 11 | . 3 . 8 . . Grunt 13 | . 7 . 6 . . Duelist 2 | . . . 2 . . Sentry 8 | . . . 8 . . Assembled 7 | . . . . . 7 Best Kill Streak 7 | . 7 . 4 . 7 Combat Bots Only 7 | . 7 . 3 . 7 Max Kills in Single Turn 3 | . 1 . 2 . 3 Gunslinging . | . . . . . . Exploded 3 | . . . 2 . 3 Melee . | . . . . . . Uniques/NPCs Destroyed 1 | . . . . . 1 8R-AWN (-9/Exiles) Combat | -11 -10 -10 -9 -9 -9 -------- Run | Yrd Mat Min Mat Min Exi Hostile Shots Fired 281 | . 63 6 105 . 107 Missed 65 | . 13 4 33 . 15 Damage Taken 3251 | . 546 16 1019 . 1670 Core 461 | . 58 . 117 . 286 Absorbed by Shields 9 | . . . . . 9 Core Remaining (%) 88 | 100 . 76 . . . Volleys Fired 146 | . 37 1 64 . 44 Largest 2 | . 2 1 2 . 2 Hottest 131 | . 60 20 131 . 88 Shots Fired 267 | . 74 1 114 . 78 Gun 187 | . 74 1 108 . 4 Cannon 66 | . . . . . 66 Launcher 13 | . . . 6 . 7 Special 1 | . . . . . 1 Kinetic 138 | . 55 1 16 . 66 Thermal 112 | . 19 . 90 . 3 Explosive 13 | . . . 6 . 7 Electromagnetic 3 | . . . 2 . 1 Robot Hit Streak 19 | . 10 . 19 . 10 Robot Miss Streak 3 | . 2 1 3 . 3 Penetration Max . | . . . . . . Secondary Targets 5 | . 4 . 1 . . Max Gunslinging Chain 1 | . 1 . 1 . . Shots Hit Robots 189 | . 52 . 87 . 50 Core Hits 83 | . 25 . 36 . 22 Critical Kills . | . . . . . . Critical Parts Destroyed 2 | . 1 . 1 . . Critical Strikes 11 | . 1 . 8 . 2 Burn 7 | . . . 7 . . Destroy 2 | . 1 . 1 . . Blast 2 | . . . . . 2 Melee Attacks . | . . . . . . Impact . | . . . . . . Slashing . | . . . . . . Piercing . | . . . . . . Sneak Attacks . | . . . . . . Combat Hostiles . | . . . . . . Follow-up Attacks . | . . . . . . Damage Inflicted 4369 | . 556 1 2179 . 1633 Guns 2238 | . 556 . 1641 . 41 Cannons 1137 | . . . . . 1137 Explosions 993 | . . . 538 . 455 Melee . | . . . . . . Ramming 1 | . . 1 . . . Kinetic 1685 | . 399 . 149 . 1137 Thermal 1681 | . 157 . 1483 . 41 Explosive 964 | . . . 509 . 455 Electromagnetic 38 | . . . 38 . . Impact . | . . . . . . Slashing . | . . . . . . Piercing . | . . . . . . Highest Corruption 8 | . . . 4 4 8 Average Corruption 3 | . . . 3 4 4 Corruption Purged . | . . . . . . Corruption Blocked . | . . . . . . Effects 57 | . . . 19 2 36 Message Errors 16 | . . . 4 . 12 Matter Fused 8 | . . . 2 . 6 Heat Flow Errors 7 | . . . 3 . 4 Energy Discharges 12 | . . . 3 1 8 Data Loss (minor) 5 | . . . 2 . 3 Data Loss (major) 3 | . . . 3 . . Misfires 3 | . . . 1 . 2 Alerts 3 | . . . 1 1 1 Overload Shots . | . . . . . . Overflow Damage 23 | . . . . . 23 Projectiles 7 | . . . . . 7 Explosions 16 | . . . . . 16 Melee . | . . . . . . Knockbacks 18 | . . . . . 18 Impact . | . . . . . . Kinetic 18 | . . . . . 18 Secondary . | . . . . . . Self-Inflicted Damage 34 | . . . 34 . . Shots 1 | . . . 1 . . Rammed 1 | . . 1 . . . Targets Rammed 1 | . . 1 . . . Kicked . | . . . . . . Crushed . | . . . . . . Highest Temperature 321 | . 90 . 256 . 321 Average Temperature 67 | . 29 . 63 . 128 Received Heat Transfer 543 | . 234 . 309 . . Siege Activations . | . . . . . . Robots Corrupted . | . . . . . . Combat Hostiles . | . . . . . . Parts Fried . | . . . . . . Impact Corruptions . | . . . . . . Robots Melted 1 | . . . 1 . . Combat Hostiles 1 | . . . 1 . . Parts Melted 16 | . . . 16 . . Heat Transferred 3656 | . 350 . 3232 . 74 Parts Sabotaged . | . . . . . . Parts Stolen . | . . . . . . Parts Stripped . | . . . . . . Power Chain Reactions 1 | . . . 1 . . Alert | -11 -10 -10 -9 -9 -9 ------- Run | Yrd Mat Min Mat Min Exi Peak Influence 403 | . 208 56 403 133 . Initial 133 | . . 5 21 133 . Average 134 | . 50 20 251 133 . Maximum Alert Level 2 | . 1 . 2 . . Low Security (%) 69 | 100 99 100 32 100 . Level 1 24 | . . . 54 . . Level 2 5 | . . . 13 . . Level 3 . | . . . . . . Level 4 . | . . . . . . Level 5 . | . . . . . . High Security . | . . . . . . Max Security . | . . . . . . Squads Dispatched 3 | . 1 . 2 . . Investigation 1 | . 1 . . . . Extermination . | . . . . . . Reinforcement 2 | . . . 2 . . Assault . | . . . . . . Garrison . | . . . . . . Intercept . | . . . . . . Searches Triggered . | . . . . . . Construction Impeded . | . . . . . . Haulers Reinforced . | . . . . . . Active Scanning Responses . | . . . . . . Cargo Convoy Interrupts . | . . . . . . Stealth | -11 -10 -10 -9 -9 -9 --------- Run | Yrd Mat Min Mat Min Exi Distress Signals 3 | . . . 3 . . Communications Jammed . | . . . . . . Distress Signals . | . . . . . . Times Spotted 77 | . 23 8 33 . 13 Peak Tracking Total 9 | . 5 3 4 . 9 Tactical Retreats 4 | . . . 1 . 3 Traps | -11 -10 -10 -9 -9 -9 ------- Run | Yrd Mat Min Mat Min Exi Traps Triggered 6 | . 2 . 4 . . Indirectly . | . . . . . . Trap Hack Attempts . | . . . . . . Triggered . | . . . . . . Disarmed . | . . . . . . Reprogrammed . | . . . . . . Reused . | . . . . . . Traps Extracted . | . . . . . . Installed . | . . . . . . Triggered . | . . . . . . Machines | -11 -10 -10 -9 -9 -9 ---------- Run | Yrd Mat Min Mat Min Exi Machines Disabled 10 | . . . 6 . 4 Max in Single Turn 1 | . . . 1 . 1 Machines Repaired . | . . . . . . Machines Dismantled . | . . . . . . Machines Sabotaged . | . . . . . . Overloaded Fab Kills . | . . . . . . Hacking | -11 -10 -10 -9 -9 -9 --------- Run | Yrd Mat Min Mat Min Exi Machines Accessed 21 | . 11 . 9 . 1 Terminals 15 | . 8 . 7 . . Fabricators . | . . . . . . Repair Stations 2 | . 1 . 1 . . Recycling Units 3 | . 2 . 1 . . Scanalyzers . | . . . . . . Garrison Access . | . . . . . . Total Hacks 50 | . 27 . 22 . 1 Successful 25 | . 16 . 8 . 1 Failed 24 | . 10 . 14 . . Catastrophic 4 | . 2 . 2 . . Database Lockouts 1 | . 1 . . . . Manual 22 | . 14 . 7 . 1 Terminals 31 | . 17 . 14 . . Fabricators . | . . . . . . Repair Stations 4 | . 1 . 3 . . Recycling Units 14 | . 9 . 5 . . Scanalyzers . | . . . . . . Garrison Access . | . . . . . . Terminal Hacks 14 | . 9 . 4 . 1 Part Schematic 1 | . 1 . . . . Robot Analysis 3 | . 2 . 1 . . Prototype ID Bank 2 | . 1 . 1 . . Branch Access Points 1 | . 1 . . . . Alert Level 1 | . . . 1 . . Locate Traps 3 | . 2 . 1 . . Maintenance Status 1 | . 1 . . . . Hauler Manifests 1 | . 1 . . . . Derelict Proto ID Bank 1 | . . . . . 1 Fabricator Hacks . | . . . . . . Repair Station Hacks 1 | . . . 1 . . Scan Component 1 | . . . 1 . . Recycling Unit Hacks 8 | . 5 . 3 . . Process 1 | . . . 1 . . Report Inventory 4 | . 2 . 2 . . Retrieve Matter 2 | . 2 . . . . Retrieve Components 1 | . 1 . . . . Scanalyzer . | . . . . . . Garrison Access Hacks . | . . . . . . Unauthorized Hacks 2 | . 2 . . . . Terminals 2 | . 2 . . . . Botnet 1 | . 1 . . . . Operators 1 | . 1 . . . . Fabricators . | . . . . . . Repair Stations . | . . . . . . Recycling Units . | . . . . . . Scanalyzers . | . . . . . . Garrison Access . | . . . . . . Data Cores Recovered . | . . . . . . Used . | . . . . . . Hacking Detections 14 | . 6 . 8 . . Full Trace Events . | . . . . . . Feedback Events . | . . . . . . Feedback Blocked . | . . . . . . Robot Schematics Acquired . | . . . . . . Robots Built . | . . . . . . Authchips . | . . . . . . Time . | . . . . . . Total Robot Build Rating . | . . . . . . Part Schematics Acquired 1 | . 1 . . . . Parts Built . | . . . . . . Authchips . | . . . . . . Time . | . . . . . . Total Part Build Rating . | . . . . . . Parts Repaired . | . . . . . . Time . | . . . . . . Parts Recycled . | . . . . . . Recycled Matter 141 | . . . 141 . . Retrieved Matter . | . . . . . . Retrieved Components 9 | . 9 . . . . Parts Scanalyzed . | . . . . . . Part Schematics Acquired . | . . . . . . Parts Damaged . | . . . . . . Bothacking | -11 -10 -10 -9 -9 -9 ------------ Run | Yrd Mat Min Mat Min Exi Used RIF Installer . | . . . . . . Robots Hacked . | . . . . . . Non-combat . | . . . . . . Combat . | . . . . . . Robot Hacks Applied . | . . . . . . Relay Couplers Released . | . . . . . . Fabnet Peak Effective % . | . . . . . . Robots Rewired . | . . . . . . Allies Hacked . | . . . . . . Hacks Repelled . | . . . . . . Allies | -11 -10 -10 -9 -9 -9 -------- Run | Yrd Mat Min Mat Min Exi Total Allies 3 | . . 2 . . 1 Largest Group 2 | . . 2 2 . 1 Highest-Rated Group 52 | . . 52 52 . 36 Highest-Rated Ally 36 | . . 31 31 . 36 Total Orders . | . . . . . . Ally Attacks 17 | . . 11 6 . . Total Damage 290 | . . 227 63 . . Kills 6 | . . 5 1 . . Allies Corrupted . | . . . . . . Allies Melted . | . . . . . . Field Lobotomies 1 | . . . . . 1 Intel | -11 -10 -10 -9 -9 -9 ------- Run | Yrd Mat Min Mat Min Exi Robot Analysis Total 3 | . 2 . 1 . . Derelict Logs Recovered 1 | . . 1 . . . Drone Launches . | . . . . . . Drone Recoveries . | . . . . . . Exploration | -11 -10 -10 -9 -9 -9 ------------- Run | Yrd Mat Min Mat Min Exi Turns Passed 6192 | 74 1272 1134 2105 102 1505 Spaces Moved 2855 | 42 700 654 894 42 523 Core 5 | 5 . . . . . Treads 2850 | 37 700 654 894 42 523 Legs . | . . . . . . Wheels . | . . . . . . Hover . | . . . . . . Flight . | . . . . . . Fastest Speed 50 | 50 160 160 160 240 240 Average Speed 190 | 146 160 160 204 240 244 Slowest Speed 400 | 160 240 160 240 240 400 Overloaded Moves . | . . . . . . Propulsion Burnouts . | . . . . . . Robots Hopped . | . . . . . . Cave-ins Triggered . | . . . . . . Exploration Rate (%) 59 | 3 99 94 75 14 69 Regions Visited 5 Branch Regions 3 Pre-discovered Areas 1 | . . . . 1 . Known Exits Taken 1 | . 1 . . . . Unknown Exits Taken 4 | 1 . 1 1 1 . Scrap Searched 3 | . . 3 . . . Spaces Dug 8 | . . . 8 . . Terrain Destroyed 31 | . . . 19 . 12 Melee . | . . . . . . Projectile 5 | . . . . . 5 AOE 26 | . . . 19 . 7 Terrain Rammed . | . . . . . . Walls Destroyed . | . . . . . . Machines Disabled . | . . . . . . Actions | -11 -10 -10 -9 -9 -9 --------- Run | Yrd Mat Min Mat Min Exi Total 3360 | 51 787 741 1061 43 677 Wait 181 | 3 5 69 38 . 66 Move 2850 | 41 699 653 893 41 523 Hop . | . . . . . . Pick Up 54 | 1 18 4 25 . 6 Fast Attach 21 | 6 7 1 5 . 2 Attach 23 | . 4 . 7 . 12 Detach 16 | . 7 . 2 . 7 Swap 25 | . 1 6 11 2 5 Drop 43 | . 9 6 16 . 12 Fire 146 | . 37 1 64 . 44 Melee . | . . . . . . Ram . | . . . . . . Kick . | . . . . . . Crush 1 | . . 1 . . . Escape Stasis . | . . . . . . Rewire . | . . . . . . Trap . | . . . . . . Miscellaneous . | . . . . . . Route ------- -11/Scrapyard -10/Materials (discovered 5 exits: *Mat x3 / *Min / [*Sub]) -10/Mines (discovered 2 exits: *Mat x2) -9/Materials (discovered 4 exits: [*Mat x3] / [*Min]) -9/Mines -9/Exiles History --------- Turn | Location | Event 9 | -11/Scrapyard | Discovered new exit (range 14) 75 | -11/Scrapyard | Entered Materials 269 | -10/Materials | Destroyed 7 combat bots 307 | -10/Materials | Build established: Mutant 315 | -10/Materials | Discovered new exit (range 13) 497 | -10/Materials | Discovered new exit (range 15) 605 | -10/Materials | Central database locked down 639 | -10/Materials | Discovered new exit (range 3) 849 | -10/Materials | Discovered new exit (range 15) 943 | -10/Materials | Identified exit to Mines 1237 | -10/Materials | Discovered new exit (range 6) 1347 | -10/Materials | Entered Mines 1348 | -10/Mines | Met a Derelict testing a Signal Generator 1351 | -10/Mines | Found Signal Generator 1362 | -10/Mines | Received a Rocket Launcher from a helpful Derelict 1577 | -10/Mines | Discovered new exit (range 10) 2004 | -10/Mines | Discovered new exit (range 8) 2268 | -10/Mines | Learned Materials security intel 2481 | -10/Mines | Entered Materials 2481 | -9/Materials | Accompanied by 2 allies 2481 | -9/Materials | Evolved 2 slots: Propulsion x1, Utility x1 2486 | -9/Materials | Led the pair of lost Derelicts to an unsafe place 3240 | -9/Materials | Discovered new exit (range 15) 3590 | -9/Materials | Build established: Scavenger-Mutant 3886 | -9/Materials | Discovered new exit (range 5) 4108 | -9/Materials | Discovered new exit (range 8) 4549 | -9/Materials | Discovered new exit (range 11) 4586 | -9/Materials | Entered Mines 4587 | -9/Mines | Assembled infested the area 4592 | -9/Mines | Assisted by a Guerilla fighting off Assembled 4646 | -9/Mines | Learned location of Storage (-8) 4678 | -9/Mines | Deemed a non-threat by the Exiles lab entrance 4678 | -9/Mines | Discovered new exit (range 5) 4688 | -9/Mines | Entered Exiles 4753 | -9/Exiles | Met 8R-AWN 4787 | -9/Exiles | Met EX-HEX 4852 | -9/Exiles | Met EX-BIN 4885 | -9/Exiles | Build established: Mutant 4885 | -9/Exiles | Aligned with FarCom system 4888 | -9/Exiles | Given EX-Vault access code 4943 | -9/Exiles | Opened EX-Vault 4965 | -9/Exiles | Found Field Lobotomy Kit 4972 | -9/Exiles | Found Skeleton Box 5044 | -9/Exiles | Warned to stay clear of 0b10 Research branches 5272 | -9/Exiles | Found Flying Fortress v7 5388 | -9/Exiles | Met EX-DEC 5732 | -9/Exiles | Attacked by the Exiles 5779 | -9/Exiles | Destroyed 7 combat bots 5917 | -9/Exiles | Core integrity fell below 50% 5920 | -9/Exiles | Destroyed 8R-AWN 6049 | -9/Exiles | Assimilated DAS Turret with FLK Orb 6071 | -9/Exiles | Lost 4 parts (1p1n2w) 6192 | -9/Exiles | Core integrity fell below 20% 6193 | -9/Exiles | Destroyed by EX-DEC with AWS/EX-DEC Last Messages --------------- 05982_ X|SO:3PCFYSF|IZZEI%SEUVKO3BVZNN<%U,I 06010_ System corrupted: Matter fused (-6). 06031_ XPMV|%IP& QDE3X2C:J,9HG%23W0NGVEF0D 06036_ Rocket Launcher destroyed. 06039_ Acquired 5 matter. 06040_ Lgt. Angular Momentum Engine destroyed. 06040_ Imp. Treads destroyed. 06040_ Assault Cannon destroyed. 06049_ DAS Turret assimilated. 06064_ Acquired 8 matter. 06095_ System corrupted: Energy discharge (-21). 06133_ System corrupted: Matter fused (-10). 06155_ Lgt. Treads destroyed. 06157_ System corrupted: IFF burst signal emitted. 06172_ T%: NMXA/O4N:D91H7RQ8=1P/&R/MD 06180_ Beamcaster destroyed. 06187_ Imp. Treads destroyed. 06188_ Cooling System destroyed. 06190_ EX-DEC knocked back. Map ----- +----------------------------------------------------+ | ??????????## ######""" | | ??????????# ""##????#####""" | | ??????????# """##?????????##""" | | ??????????# """##???????????#"""" | | ??????????# " ""#????????????#"" | | ??????????#" ###?####?????#"""" | | ??????????#""" ## ##???"" | | ??????????#"" """" | | ??????????##"" | | ???????????#" | | ???????????## | | ????????????#" " "" | | ????????????#"""" ""#?? ##""" " " " | | ????????????#"" ""###?????####""" "" | | ????????????#" """"##??????????###"""" | | ????????????#""" """#?????????????####? | | ????????????## ""##?????????????????? | | ?????????????#"" """##??????????????????? | | ?????????????##""" ##???????????????????? | | ??????????????##"""" ##????????????????????? | | ???????????????### #?????????????????????? | | ?????????????????##### ##?????????????????????? | | ?????????????????????## #??????????????????????? | | ??????????????????????# #??????????????????????? | | ??????????????????????# #??????????????????????? | | ??????????????????????#% @#??????????????????????? | | ??????????????????????# #??????????????????????? | | ??????????????????????# c #??????????????????????? | | ??????????????????????# #??????????????????????? | | ??????????????????????# #??????????????????????? | | ??????????????????????# #??????????????????????? | | ??????????????????????#% #??????????????????????? | | ??????????????????????# #??????????????????????? | | ??????????????????????" "??????????????????????? | | ?????????????????????? % ??????????????????????? | | ????????????????????? ??????????????????????? | | ????????????????????? ??????????????????????? | | ???????????????????? ?????????????????????? | | ???????????????????? ?????????????????????? | | ????????????????????""" ?????????????????????? | | ?????????????????????####"""?????????????????????? | | ????????????????????????? ??????????????????????? | | ?????????????????????????????????????????????????? | | ?????????????????????????????????????????????????? | | ?????????????????????????????????????????????????? | | ?????????????????????????????????????????????????? | | ?????????????????????????????????????????????????? | | ?????????????????????????????????????????????????? | | ?????????????????????????????????????????????????? | | ?????????????????????????????????????????????????? | +----------------------------------------------------+ Best States ------------- Heat Dissipation 76 Energy Generation 18 Energy Capacity 250 Matter Stores 300 Matter Capacity 300 Sight Range 16 Terrain Scan Density 10 Armor Coverage 150 Evasion (%) 40 Recoil Reduction 3 Item Schematics ----------------- Huge Storage Unit | -10/Materials | Hacked Robot Schematics ------------------ None Fabricated ------------ Nothing Alien Tech Used ----------------- None Achievements -------------- None Challenges ------------ None Game ------ Seed LauncherShadeMeganuke Manual? 0 Play Time 00:43:48 Cumulative 11.4 hours Start 2024.08.02 @ 08:13:51 End 2024.08.02 @ 08:58:29 Sessions 4 Manual Loads 0 Difficulty Rogue Special Mode None Game No. 8 Rogue 8 Adventurer 0 Explorer 0 Win Type - Total 1 Types 0/0/1/0/0/0/0/0/0 Lore% 10 Gallery% 25 Achievement% 59 Wizard Run 0 Options --------- Layout 1 ASCII 0 Keyboard 1 Movement Arrows Keybinds 0 Fullscreen 1 Font 28/SmallcapsGlow Map View 50x40 Zoom Use 0% Tactical HUD 1 Map Filters NONE Filters NONE Steam 1 RUN: ea010df1-9499-40fc-b262-8d7ec58c5831